bitfinex/quotes_BTCUSD_20241223
["timestamp","ask_amount","ask_price","bid_price","bid_amount"]
[1734960608653,0.0781,95832.0,95819.0,0.208725]
[1734960609095,0.004,95830.0,95819.0,0.208725]
[1734960609305,0.004,95830.0,95816.0,0.208732]
[1734960609532,0.004,95830.0,95820.0,0.208724]
[1734960609795,0.004,95830.0,95811.0,8.56e-05]
[1734960609972,0.004,95830.0,95812.0,0.208742]
[1734960610150,0.004,95830.0,95820.0,0.208723]
[1734960610356,0.001,95830.0,95820.0,0.417447]
[1734960610553,0.001,95830.0,95822.0,0.208719]
[1734960610964,0.0483,95837.0,95822.0,0.208719]
[1734960611149,0.0001712,95831.0,95811.0,8.56e-05]
[1734960611352,0.0778,95820.0,95811.0,8.56e-05]
[1734960611552,0.208736,95815.0,95811.0,8.56e-05]
[1734960611961,0.417472,95815.0,95811.0,8.56e-05]
[1734960612164,0.0467,95816.0,95811.0,8.56e-05]
[1734960612568,0.04372153,95815.0,95811.0,8.56e-05]
[1734960613267,0.0467,95816.0,95811.0,8.56e-05]
[1734960613820,0.52145732,95815.0,95811.0,8.56e-05]
[1734960614007,0.52245732,95815.0,95811.0,8.56e-05]
[1734960614205,0.52145732,95815.0,95811.0,8.56e-05]
[1734960614999,0.52245732,95815.0,95811.0,8.56e-05]
[1734960615445,0.208739,95813.0,95811.0,8.56e-05]
[1734960615698,0.10398632,95812.0,95811.0,8.56e-05]
[1734960616069,0.18258632,95812.0,95811.0,8.56e-05]
[1734960617984,0.18358632,95812.0,95811.0,8.56e-05]
[1734960618418,0.18358632,95812.0,95805.0,8.56e-05]
[1734960618419,0.436655,95806.0,95805.0,8.56e-05]
[1734960618575,0.72780046,95806.0,95805.0,6e-07]
[1734960619445,0.72768984,95806.0,95805.0,6e-07]
[1734960619755,0.436659,95804.0,95803.0,8e-07]
[1734960619959,0.54064532,95804.0,95803.0,8e-07]
[1734960620226,0.289894,95788.0,95746.0,0.208884]
[1734960620404,0.44058032,95788.0,95787.0,0.00013897]
[1734960623324,0.0762,95799.0,95787.0,0.00013897]
[1734960623524,0.208772,95798.0,95787.0,0.00013897]
[1734960623809,0.417545,95798.0,95787.0,0.00013897]
[1734960624188,0.208787,95791.0,95787.0,0.00013897]
[1734960624337,0.10398632,95790.0,95787.0,0.00013897]
[1734960624714,0.0831,95808.0,95787.0,0.00013897]
[1734960624844,0.10398632,95803.0,95787.0,0.00013897]
[1734960625266,0.0831,95819.0,95795.0,0.208777]
[1734960625526,0.208741,95813.0,95795.0,0.208777]
[1734960625728,0.10398632,95812.0,95795.0,0.208777]
[1734960626025,0.10398632,95812.0,95787.0,0.00013897]
[1734960626026,0.208716,95824.0,95790.0,0.17774186]
[1734960626229,0.208722,95821.0,95802.0,0.208762]
[1734960626631,0.10398632,95822.0,95802.0,0.208762]
[1734960627300,0.001,95804.0,95802.0,0.208762]
[1734960627752,0.0001712,95831.0,95820.0,0.208724]
[1734960627898,0.001,95822.0,95820.0,0.208724]
[1734960628506,0.0001712,95831.0,95820.0,0.417448]
[1734960628906,0.0002246,95823.0,95820.0,0.417448]
[1734960629436,0.0002246,95823.0,95820.0,0.2235328]
[1734960630413,0.003,95822.0,95820.0,0.2235328]
[1734960630844,0.003,95822.0,95819.0,0.208726]
[1734960631432,0.0002246,95823.0,95819.0,0.208726]
[1734960631635,0.0072246,95823.0,95819.0,0.208726]
[1734960632200,0.003,95822.0,95816.0,0.0779]
[1734960632563,0.003,95822.0,95817.0,0.208731]
[1734960632769,0.003,95822.0,95817.0,0.417462]
[1734960633432,0.0002246,95823.0,95817.0,0.417462]
[1734960633630,0.0032246,95823.0,95817.0,0.417462]
[1734960633843,0.002,95822.0,95817.0,0.417462]
[1734960634053,0.002,95822.0,95819.0,0.417452]
[1734960634259,0.004,95822.0,95820.0,0.10502972]
[1734960634465,0.002,95822.0,95821.0,0.208722]
[1734960634685,0.0002246,95823.0,95822.0,0.1457]
[1734960634899,0.0042246,95823.0,95822.0,0.24968632]
[1734960635128,0.0042246,95823.0,95822.0,0.0457]
[1734960635336,0.0042246,95823.0,95822.0,0.14674341]
[1734960636159,0.0022246,95823.0,95822.0,0.14674341]
[1734960636367,0.0022246,95823.0,95822.0,0.24027344]
[1734960636564,0.0022246,95823.0,95822.0,0.23923003]
[1734960636766,0.0001712,95831.0,95830.0,0.208702]
[1734960638089,2e-07,95831.0,95830.0,0.93268832]
[1734960638292,0.20853,95910.0,95830.0,0.93268832]
[1734960638293,0.208525,95912.0,95874.0,0.151]
[1734960638509,0.2803916,95914.0,95875.0,0.1]
[1734960638712,0.0001712,95899.0,95882.0,0.7445888]
[1734960638940,0.00070592,95883.0,95882.0,0.84857512]
[1734960639362,0.00070592,95883.0,95882.0,0.7445888]
[1734960640541,0.00370592,95883.0,95882.0,0.7445888]
[1734960640926,0.001,95883.0,95882.0,0.7445888]
[1734960641346,0.003,95883.0,95882.0,0.7445888]
[1734960641547,0.004,95883.0,95882.0,0.7445888]
[1734960641750,0.002,95883.0,95882.0,0.7445888]
[1734960642484,0.0001712,95899.0,95882.0,0.53726251]
[1734960642786,0.00033168,95897.0,95882.0,0.53726251]
[1734960642945,0.001,95883.0,95882.0,0.53726251]
[1734960643366,0.00033168,95897.0,95883.0,0.208587]
[1734960643786,0.00133168,95897.0,95883.0,0.208587]
[1734960644029,0.00033168,95897.0,95883.0,0.417174]
[1734960644982,0.00133168,95897.0,95883.0,0.215587]
[1734960645980,0.00133168,95897.0,95883.0,0.218587]
[1734960646391,0.00133168,95897.0,95888.0,0.208576]
[1734960646586,0.00033168,95897.0,95888.0,0.208576]
[1734960646990,0.00133168,95897.0,95883.0,0.218587]
[1734960647167,0.00133168,95897.0,95883.0,0.007]
[1734960647521,0.00133168,95897.0,95888.0,0.002]
[1734960647783,0.208561,95895.0,95888.0,0.002]
[1734960648007,0.0807,95889.0,95888.0,0.002]
[1734960648204,0.18468632,95889.0,95888.0,0.007]
[1734960648637,0.28468632,95889.0,95888.0,0.007]
[1734960648849,0.33168632,95889.0,95888.0,0.005]
[1734960649230,0.33168632,95889.0,95865.0,0.09309505]
[1734960649231,0.417162,95886.0,95883.0,0.003]
[1734960649484,0.20398632,95884.0,95883.0,0.003]
[1734960649658,0.208624,95866.0,95862.0,0.14053071]
[1734960649860,0.10398632,95865.0,95842.0,0.00104323]
[1734960650225,0.208639,95860.0,95841.0,0.208678]
[1734960650432,0.52126432,95860.0,95840.0,0.11503491]
[1734960650635,0.208639,95859.0,95840.0,0.11503491]
[1734960651022,0.20879916,95859.0,95840.0,0.11503491]
[1734960651216,0.20879916,95859.0,95842.0,0.002]
[1734960651374,0.20879916,95859.0,95840.0,0.11503491]
[1734960651843,0.20879916,95859.0,95840.0,0.12003491]
[1734960652047,0.208641,95858.0,95840.0,0.12003491]
[1734960652247,0.208641,95858.0,95840.0,0.01949305]
[1734960653224,0.208641,95858.0,95841.0,0.00690346]
[1734960653446,0.208656,95852.0,95841.0,0.00690346]
[1734960653802,0.208645,95857.0,95842.0,0.003]
[1734960654031,0.208645,95857.0,95834.0,0.208692]
[1734960654231,0.208645,95857.0,95835.0,0.00796246]
[1734960654436,0.208645,95857.0,95841.0,0.001]
[1734960654633,0.208645,95857.0,95835.0,0.00796246]
[1734960654634,0.208645,95857.0,95835.0,0.0010433]
[1734960654847,0.208645,95857.0,95836.0,0.00691654]
[1734960655169,0.208655,95852.0,95842.0,0.001]
[1734960655476,0.02057972,95852.0,95842.0,0.001]
[1734960655708,0.208671,95845.0,95842.0,0.001]
[1734960656451,0.208671,95845.0,95820.0,0.10054186]
[1734960656766,0.208671,95845.0,95835.0,0.003]
[1734960657262,0.208671,95845.0,95842.0,0.001]
[1734960657466,0.209671,95845.0,95842.0,0.007]
[1734960658192,0.209671,95845.0,95842.0,0.001]
[1734960658375,0.208671,95845.0,95842.0,0.001]
[1734960658792,0.208671,95845.0,95824.0,0.208715]
[1734960658993,0.209671,95845.0,95824.0,0.208715]
[1734960659198,0.209671,95845.0,95825.0,0.208713]
[1734960659397,0.208671,95845.0,95825.0,0.208713]
[1734960659961,0.20967,95845.0,95842.0,0.001]
[1734960660151,0.208674,95843.0,95842.0,0.001]
[1734960660430,0.10398632,95843.0,95825.0,0.004]
[1734960660691,0.254011,95826.0,95823.0,8.56e-05]
[1734960660899,0.208715,95824.0,95823.0,8.56e-05]
[1734960661071,0.31270132,95824.0,95823.0,8.56e-05]
[1734960661786,0.49560132,95824.0,95823.0,8.56e-05]
[1734960661999,0.208759,95804.0,95798.0,0.0928076]
[1734960662201,0.31274532,95804.0,95803.0,0.00062012]
[1734960662413,0.31274532,95804.0,95803.0,0.00747472]
[1734960662585,0.31274532,95804.0,95803.0,0.00062012]
[1734960663908,0.31454532,95804.0,95803.0,0.00062012]
[1734960664278,0.38874925,95804.0,95803.0,0.00062012]
[1734960664894,0.38774925,95804.0,95803.0,0.00062012]
[1734960665115,0.31454532,95804.0,95803.0,0.00062012]
[1734960665391,0.31554532,95804.0,95803.0,0.00062012]
[1734960665790,0.31454532,95804.0,95803.0,0.00062012]
[1734960665940,0.31254532,95804.0,95803.0,0.00062012]
[1734960666147,0.31254532,95804.0,95803.0,0.00262012]
[1734960666618,0.31254532,95804.0,95803.0,0.00062012]
[1734960666839,0.31454532,95804.0,95803.0,0.00062012]
[1734960667524,0.31654532,95804.0,95803.0,0.00062012]
[1734960668566,0.003,95804.0,95803.0,0.00062012]
[1734960668805,0.208727,95819.0,95803.0,0.00062012]
[1734960669024,0.002,95804.0,95803.0,0.00062012]
[1734960669266,0.004,95804.0,95803.0,0.00062012]
[1734960669526,0.002,95804.0,95803.0,0.00166387]
[1734960669759,0.001,95804.0,95803.0,0.00062012]
[1734960670251,0.208734,95816.0,95803.0,0.00062012]
[1734960670482,0.002,95804.0,95803.0,0.21037912]
[1734960670723,0.002,95804.0,95803.0,0.20937912]
[1734960672095,0.10054186,95830.0,95803.0,0.00062012]
[1734960672461,0.208744,95812.0,95803.0,0.00062012]
[1734960672661,0.10398632,95812.0,95803.0,0.00062012]
[1734960673098,0.002,95804.0,95803.0,0.00062012]
[1734960673307,0.005,95804.0,95803.0,0.00062012]
[1734960673510,0.208744,95811.0,95803.0,0.00062012]
[1734960673861,0.208755,95806.0,95803.0,0.00062012]
[1734960674067,0.208759,95804.0,95803.0,0.00062012]
[1734960674266,0.31274532,95804.0,95803.0,0.00062012]
[1734960674671,0.31274532,95804.0,95803.0,0.00362012]
[1734960675912,0.208755,95806.0,95803.0,0.00062012]
[1734960676353,0.003,95804.0,95803.0,0.00062012]
[1734960676773,0.004,95804.0,95803.0,0.00562012]
[1734960676950,0.005,95804.0,95803.0,0.00562012]
[1734960677130,0.001,95804.0,95803.0,0.00062012]
[1734960677528,0.001,95806.0,95803.0,0.00062012]
[1734960677829,0.208747,95810.0,95803.0,0.00062012]
[1734960678041,0.20875,95808.0,95803.0,0.00062012]
[1734960678239,0.31273632,95808.0,95803.0,0.00062012]
[1734960678638,0.10398632,95808.0,95803.0,0.00062012]
[1734960679017,0.001,95804.0,95803.0,0.00562012]
[1734960679240,0.001,95804.0,95803.0,0.00062012]
[1734960679451,0.005,95804.0,95803.0,0.00062012]
[1734960679655,0.005,95804.0,95803.0,0.00562012]
[1734960679852,0.10398632,95808.0,95803.0,0.00062012]
[1734960680237,0.001,95804.0,95803.0,0.00562012]
[1734960680556,0.001,95804.0,95803.0,0.00062012]
[1734960680808,0.001,95804.0,95803.0,0.00362012]
[1734960682322,0.31273832,95808.0,95803.0,0.00062012]
[1734960682477,0.208736,95815.0,95803.0,0.00062012]
[1734960682674,0.003,95804.0,95803.0,0.00062012]
[1734960683150,0.003,95804.0,95803.0,0.00262012]
[1734960683281,0.001,95808.0,95803.0,0.00062012]
[1734960683708,0.31273932,95807.0,95803.0,0.00062012]
[1734960684132,0.004,95804.0,95803.0,0.00062012]
[1734960684333,0.01,95804.0,95803.0,0.00162012]
[1734960685152,0.11398632,95804.0,95803.0,0.00162012]
[1734960685677,0.10798632,95804.0,95803.0,0.00062012]
[1734960686396,0.10398632,95804.0,95803.0,0.00062012]
[1734960686593,0.19966727,95804.0,95803.0,0.00062012]
[1734960687097,0.30166727,95804.0,95803.0,0.00062012]
[1734960687301,0.20166727,95804.0,95803.0,0.00062012]
[1734960687473,0.30366727,95804.0,95803.0,0.00062012]
[1734960688768,0.38166727,95804.0,95803.0,0.00062012]
[1734960688970,0.48066727,95804.0,95803.0,0.00062012]
[1734960689168,0.48166727,95804.0,95803.0,0.00062012]
[1734960689575,0.48166727,95804.0,95803.0,1.2e-07]
[1734960689773,0.1775,95788.0,95787.0,8.56e-05]
[1734960689974,0.53918032,95788.0,95787.0,5.4e-05]
[1734960690804,0.43918032,95788.0,95787.0,5.4e-05]
[1734960692114,0.44518032,95788.0,95787.0,5.4e-05]
[1734960692912,0.44618032,95788.0,95787.0,5.4e-05]
[1734960693119,0.65016664,95788.0,95787.0,5.4e-05]
[1734960693321,0.65016664,95788.0,95787.0,1e-06]
[1734960693736,0.64916664,95788.0,95787.0,1e-06]
[1734960693962,0.65216664,95788.0,95787.0,1e-06]
[1734960694168,0.68439895,95788.0,95787.0,1e-06]
[1734960694373,0.65216664,95788.0,95787.0,1e-06]
[1734960694582,0.68440704,95788.0,95787.0,1e-06]
[1734960694997,0.77840704,95788.0,95787.0,1e-06]
[1734960695209,0.78340704,95788.0,95787.0,1e-06]
[1734960695614,0.77840704,95788.0,95787.0,1e-06]
[1734960695826,0.78140704,95788.0,95787.0,1e-06]
[1734960696024,0.77540704,95788.0,95787.0,1e-06]
[1734960696304,0.78040704,95788.0,95787.0,1e-06]
[1734960696445,0.78640704,95788.0,95787.0,8.67e-05]
[1734960696864,0.78157844,95788.0,95787.0,7e-07]
[1734960697285,0.75333804,95788.0,95787.0,7e-07]
[1734960697709,0.74933804,95788.0,95787.0,7e-07]
[1734960698595,0.74333804,95788.0,95787.0,7e-07]
[1734960699005,0.75333804,95788.0,95787.0,7e-07]
[1734960699635,0.74933804,95788.0,95787.0,7e-07]
[1734960699839,0.74833804,95788.0,95787.0,7e-07]
[1734960700466,0.74333804,95788.0,95787.0,7e-07]
[1734960700661,0.74833804,95788.0,95787.0,7e-07]
[1734960701278,0.75333804,95788.0,95787.0,7e-07]
[1734960701492,0.74833804,95788.0,95787.0,7e-07]
[1734960701721,0.75633804,95788.0,95787.0,7e-07]
[1734960701936,0.75133804,95788.0,95787.0,7e-07]
[1734960702157,0.1,95779.0,95778.0,8.56e-05]
[1734960702366,0.61170032,95779.0,95778.0,9.7e-07]
[1734960702570,0.59170032,95779.0,95778.0,9.7e-07]
[1734960703229,0.1,95750.0,95738.0,8.57e-05]
[1734960703429,0.132,95755.0,95738.0,8.57e-05]
[1734960703430,0.51288532,95740.0,95739.0,0.00053346]
[1734960703880,0.2,95739.0,95738.0,1e-08]
[1734960704077,0.30398632,95739.0,95738.0,1e-08]
[1734960704281,0.208938,95722.0,95720.0,0.09034261]
[1734960704514,0.208938,95722.0,95720.0,0.01734261]
[1734960704515,0.10398632,95721.0,95720.0,0.01734261]
[1734960705159,0.05134189,95738.0,95720.0,0.01734261]
[1734960705274,0.10398632,95721.0,95720.0,0.01734261]
[1734960705720,0.001,95721.0,95720.0,0.01734261]
[1734960706237,0.001,95721.0,95720.0,0.02116772]
[1734960707509,0.208926,95728.0,95720.0,0.02116772]
[1734960707715,0.208926,95728.0,95720.0,0.01734261]
[1734960707716,0.10398632,95728.0,95720.0,0.01734261]
[1734960707975,0.001,95721.0,95720.0,0.01734261]
[1734960708205,0.10398632,95728.0,95720.0,0.01734261]
[1734960709025,0.001,95721.0,95720.0,0.01734261]
[1734960709435,0.001,95721.0,95720.0,0.01742831]
[1734960709615,0.001,95721.0,95720.0,0.22637031]
[1734960710504,0.001,95721.0,95720.0,0.01742831]
[1734960711016,0.208918,95731.0,95720.0,0.01742831]
[1734960711242,0.14576882,95730.0,95720.0,0.01742831]
[1734960711449,0.001,95721.0,95720.0,0.01742831]
[1734960711628,0.31392632,95721.0,95720.0,0.01742831]
[1734960712271,0.31292632,95721.0,95720.0,0.01742831]
[1734960712880,0.10398632,95721.0,95720.0,0.01742831]
[1734960713171,0.13527775,95721.0,95720.0,0.01742831]
[1734960714136,0.208928,95727.0,95720.0,0.01742831]
[1734960714403,0.10398632,95726.0,95720.0,0.01742831]
[1734960714725,0.208936,95723.0,95720.0,0.01742831]
[1734960714930,0.20894,95721.0,95720.0,0.01742831]
[1734960715167,0.31392632,95721.0,95720.0,0.01742831]
[1734960715540,0.36521255,95721.0,95720.0,0.01742831]
[1734960719907,0.31292632,95721.0,95720.0,0.01742831]
[1734960722622,0.38872632,95721.0,95720.0,0.01742831]
[1734960722823,0.31292632,95721.0,95720.0,0.01742831]
[1734960724333,0.41292632,95721.0,95720.0,0.01742831]
[1734960724495,0.47458077,95721.0,95720.0,3.1e-07]
[1734960724782,0.2,95716.0,95715.0,9.1e-07]
[1734960724985,0.51293732,95716.0,95715.0,9.1e-07]
[1734960725732,0.58813732,95716.0,95715.0,9.1e-07]
[1734960726948,0.308968,95708.0,95707.0,5.1e-07]
[1734960727151,0.59564292,95708.0,95707.0,5.1e-07]
[1734960727563,0.2,95704.0,95703.0,5.1e-07]
[1734960727771,0.30398632,95704.0,95703.0,5.1e-07]
[1734960727975,0.37988632,95704.0,95703.0,5.1e-07]
[1734960728450,0.38041959,95704.0,95703.0,5.1e-07]
[1734960728666,0.48440591,95704.0,95703.0,5.1e-07]
[1734960729279,0.49748123,95704.0,95703.0,5.1e-07]
[1734960729857,0.50148123,95704.0,95703.0,5.1e-07]
[1734960730055,0.2,95693.0,95692.0,1.5e-07]
[1734960730268,0.38718632,95693.0,95692.0,1.5e-07]
[1734960730472,0.48860335,95693.0,95692.0,1.5e-07]
[1734960730957,0.209086,95655.0,95642.0,0.0828]
[1734960731187,0.209095,95651.0,95642.0,0.0828]
[1734960731344,0.209078,95658.0,95643.0,0.00347553]
[1734960731540,0.31306432,95658.0,95642.0,0.0828]
[1734960731776,0.209088,95654.0,95642.0,0.0828]
[1734960731970,0.209088,95654.0,95643.0,0.00347553]
[1734960732251,0.00053294,95654.0,95636.0,0.00104548]
[1734960732458,0.10398632,95653.0,95634.0,0.1281]
[1734960732665,0.209093,95651.0,95635.0,0.209128]
[1734960732906,0.10398632,95651.0,95635.0,0.00354424]
[1734960733132,0.00053294,95654.0,95650.0,0.0808]
[1734960733331,0.00053294,95654.0,95651.0,0.2119048]
[1734960733735,0.00053294,95654.0,95651.0,0.4209978]
[1734960734492,0.00353294,95654.0,95651.0,0.4209978]
[1734960735539,0.00553294,95654.0,95653.0,0.209089]
[1734960735740,0.00553294,95654.0,95653.0,0.49359036]
[1734960736152,0.00353294,95654.0,95653.0,0.49359036]
[1734960736349,0.00553294,95654.0,95653.0,0.49359036]
[1734960736552,0.00253294,95654.0,95653.0,0.49535245]
[1734960736750,0.00053294,95654.0,95653.0,0.49535245]
[1734960737076,0.00153294,95654.0,95653.0,0.49535245]
[1734960737279,0.00053294,95654.0,95653.0,0.49535245]
[1734960737591,0.00053294,95654.0,95653.0,0.01880898]
[1734960737592,0.00153294,95654.0,95653.0,0.01880898]
[1734960737811,0.00153294,95654.0,95621.0,0.18737428]
[1734960737812,0.31460526,95654.0,95638.0,0.0782]
[1734960738013,0.209097,95650.0,95638.0,0.0782]
[1734960738217,0.10398632,95650.0,95638.0,0.0782]
[1734960738394,0.209112,95643.0,95638.0,0.0782]
[1734960738573,0.10398632,95650.0,95638.0,0.0782]
[1734960738774,0.209102,95647.0,95638.0,0.0782]
[1734960739000,0.31308332,95650.0,95638.0,0.0782]
[1734960739200,0.10398632,95650.0,95638.0,0.0782]
[1734960739407,0.001,95650.0,95639.0,0.209119]
[1734960740007,0.20961894,95654.0,95638.0,0.0782]
[1734960740389,0.001,95650.0,95638.0,0.0782]
[1734960740809,0.209097,95649.0,95638.0,0.0782]
[1734960741510,0.001,95650.0,95638.0,0.0782]
[1734960741712,0.31360526,95654.0,95639.0,0.209119]
[1734960741937,0.00053294,95654.0,95648.0,0.209098]
[1734960742141,0.001,95649.0,95642.0,0.209113]
[1734960743074,0.001,95649.0,95646.0,0.209102]
[1734960743370,0.10398632,95648.0,95627.0,0.01314623]
[1734960743613,0.001,95649.0,95630.0,0.10054186]
[1734960743813,0.02106189,95649.0,95637.0,0.418245]
[1734960743981,0.02106189,95649.0,95637.0,0.209122]
[1734960744184,0.02106189,95649.0,95642.0,8.57e-05]
[1734960744768,0.31308632,95648.0,95642.0,8.57e-05]
[1734960744967,0.20911,95644.0,95642.0,8.57e-05]
[1734960745194,0.05432582,95643.0,95642.0,8.57e-05]
[1734960745401,0.10398632,95648.0,95642.0,8.57e-05]
[1734960745692,0.10398632,95643.0,95642.0,8.57e-05]
[1734960745898,0.18708632,95643.0,95642.0,8.57e-05]
[1734960746438,0.19008632,95643.0,95642.0,8.57e-05]
[1734960747609,0.18708632,95643.0,95642.0,8.57e-05]
[1734960747826,0.209191,95607.0,95600.0,0.05446278]
[1734960748031,0.209191,95607.0,95567.0,0.1]
[1734960748032,0.12621302,95606.0,95579.0,0.09329618]
[1734960748235,0.12074143,95580.0,95579.0,0.09329618]
[1734960748440,0.31454228,95580.0,95579.0,0.09329618]
[1734960748665,0.39393432,95580.0,95579.0,0.09329618]
[1734960748884,0.54383432,95580.0,95579.0,0.09329618]
[1734960749092,0.44383432,95580.0,95579.0,0.09329618]
[1734960749294,0.64835292,95580.0,95579.0,0.09329618]
[1734960749484,0.54935292,95580.0,95579.0,0.09329618]
[1734960749682,0.34010492,95580.0,95523.0,0.11247489]
[1734960749894,0.209272,95570.0,95537.0,0.209342]
[1734960750012,0.00130809,95569.0,95561.0,0.209289]
[1734960750411,0.00153228,95580.0,95562.0,0.00104646]
[1734960750617,0.00053228,95580.0,95570.0,0.209268]
[1734960750794,0.00153228,95580.0,95563.0,0.209286]
[1734960751041,0.00453228,95580.0,95578.0,0.209251]
[1734960751222,0.00153228,95580.0,95578.0,0.209251]
[1734960751420,0.00027128,95580.0,95578.0,0.209251]
[1734960751625,0.00427128,95580.0,95578.0,0.209251]
[1734960751820,0.00227128,95580.0,95578.0,0.209251]
[1734960752232,0.00127128,95580.0,95560.0,0.1]
[1734960752435,0.00127128,95580.0,95570.0,0.209269]
[1734960752641,0.00127128,95580.0,95571.0,0.0010462]
[1734960752842,0.00127128,95580.0,95553.0,0.5359998]
[1734960752843,0.20925,95579.0,95553.0,0.5359998]
[1734960752977,0.00130791,95578.0,95560.0,0.209291]
[1734960753176,0.00130791,95578.0,95554.0,0.21035132]
[1734960753177,0.209255,95577.0,95554.0,0.209305]
[1734960753377,0.00130791,95576.0,95555.0,0.00104632]
[1734960753642,0.00130791,95579.0,95578.0,0.004]
[1734960754044,0.10529423,95579.0,95562.0,0.00104632]
[1734960754292,0.209257,95576.0,95554.0,0.006]
[1734960754448,0.10529434,95575.0,95555.0,0.209303]
[1734960754646,0.24084286,95574.0,95553.0,0.209307]
[1734960754851,0.24084286,95574.0,95551.0,0.209312]
[1734960754852,0.10398632,95574.0,95561.0,0.20929]
[1734960755065,0.209257,95576.0,95555.0,0.209303]
[1734960755290,0.00130798,95575.0,95556.0,0.00104639]
[1734960755776,0.04331631,95575.0,95556.0,0.00104639]
[1734960756274,0.10398632,95574.0,95556.0,0.00104639]
[1734960756490,0.00130807,95573.0,95561.0,0.209288]
[1734960756767,0.10398632,95573.0,95553.0,0.209307]
[1734960756985,0.01183744,95572.0,95546.0,8.57e-05]
[1734960757112,0.209278,95567.0,95561.0,0.002]
[1734960757364,0.00044288,95580.0,95546.0,8.57e-05]
[1734960757365,0.209281,95565.0,95546.0,8.57e-05]
[1734960757586,0.00130806,95564.0,95546.0,8.57e-05]
[1734960757781,0.209272,95569.0,95561.0,0.002]
[1734960758084,0.00130806,95568.0,95551.0,0.209311]
[1734960758279,0.0536912,95568.0,95551.0,0.209311]
[1734960758480,0.0536912,95568.0,95561.0,0.003]
[1734960758708,0.001,95565.0,95551.0,0.209311]
[1734960759112,0.52386138,95564.0,95546.0,8.57e-05]
[1734960759559,0.31457738,95564.0,95546.0,0.2094067]
[1734960759966,0.209294,95560.0,95546.0,8.57e-05]
[1734960760212,0.00130817,95559.0,95546.0,0.2094067]
[1734960760387,0.00130817,95563.0,95546.0,0.2094067]
[1734960760588,0.31327432,95562.0,95546.0,8.57e-05]
[1734960760802,0.00130817,95561.0,95546.0,0.2094087]
[1734960761001,0.209292,95560.0,95546.0,8.57e-05]
[1734960761227,0.21060316,95559.0,95546.0,8.57e-05]
[1734960761426,0.26299011,95559.0,95557.0,4e-05]
[1734960761638,0.10398632,95558.0,95557.0,4e-05]
[1734960762760,0.001,95563.0,95557.0,4e-05]
[1734960762915,0.209265,95573.0,95557.0,4e-05]
[1734960763092,0.209268,95571.0,95557.0,4e-05]
[1734960763277,0.10529438,95570.0,95557.0,4e-05]
[1734960763674,0.01638966,95567.0,95557.0,4e-05]
[1734960763895,0.10529446,95566.0,95557.0,4e-05]
[1734960764120,0.01638966,95567.0,95557.0,4e-05]
[1734960764340,0.00130809,95566.0,95557.0,4e-05]
[1734960764543,0.00130809,95566.0,95558.0,0.209296]
[1734960764968,0.001,95567.0,95558.0,0.209296]
[1734960765261,0.209279,95566.0,95557.0,4e-05]
[1734960765450,0.209283,95564.0,95557.0,4e-05]
[1734960765655,0.209283,95564.0,95550.0,0.199653]
[1734960765656,0.10529446,95563.0,95550.0,0.199653]
[1734960765856,0.10398632,95563.0,95550.0,0.199653]
[1734960766302,0.209277,95568.0,95558.0,0.001]
[1734960766500,0.00130806,95567.0,95558.0,0.001]
[1734960766960,0.10398632,95566.0,95558.0,0.001]
[1734960767176,0.0013081,95565.0,95558.0,0.001]
[1734960767384,0.0013081,95565.0,95554.0,0.209303]
[1734960767569,0.0013081,95565.0,95546.0,8.57e-05]
[1734960767570,0.0013081,95565.0,95558.0,0.209295]
[1734960768158,0.00044288,95580.0,95565.0,0.20928]
[1734960768358,0.00130793,95579.0,95574.0,0.20926]
[1734960768567,0.00130793,95579.0,95570.0,0.209269]
[1734960768765,0.00130793,95579.0,95560.0,0.15153539]
[1734960768950,0.005,95565.0,95562.0,0.209287]
[1734960769148,0.00130793,95579.0,95569.0,0.20927]
[1734960769547,0.418506,95578.0,95562.0,0.209287]
[1734960769754,0.0013079,95577.0,95568.0,0.209273]
[1734960769952,0.0013079,95577.0,95380.0,0.8923]
[1734960769953,0.209268,95572.0,95554.0,0.209305]
[1734960770180,0.20927,95570.0,95550.0,0.209312]
[1734960770354,0.13662009,95569.0,95547.0,0.209321]
[1734960770553,0.10529446,95569.0,95547.0,0.209321]
[1734960770790,0.10529448,95568.0,95548.0,0.00104653]
[1734960771118,0.209277,95567.0,95549.0,0.209316]
[1734960771315,0.209281,95565.0,95553.0,0.209305]
[1734960771538,0.00130807,95564.0,95553.0,0.209305]
[1734960771936,0.209279,95566.0,95553.0,0.189305]
[1734960772145,0.209283,95564.0,95549.0,0.209316]
[1734960772356,0.00130808,95563.0,95546.0,0.01238244]
[1734960772557,0.00130808,95567.0,95553.0,0.003]
[1734960773621,0.00130808,95567.0,95553.0,0.209306]
[1734960773849,0.00130808,95567.0,95547.0,0.209319]
[1734960774038,0.209279,95566.0,95553.0,0.003]
[1734960774235,0.00130808,95565.0,95552.0,0.209308]
[1734960774442,0.209283,95564.0,95552.0,0.209308]
[1734960774777,0.00130808,95563.0,95552.0,0.209308]
[1734960774973,0.00130808,95563.0,95548.0,0.209318]
[1734960774974,0.31327432,95562.0,95548.0,0.209318]
[1734960775231,0.00130816,95561.0,95546.0,0.01238244]
[1734960775408,0.209279,95566.0,95552.0,0.209307]
[1734960775643,0.10529443,95565.0,95552.0,0.209307]
[1734960776190,0.209283,95564.0,95552.0,0.209307]
[1734960776390,0.00130811,95563.0,95552.0,0.209307]
[1734960776793,0.00130811,95563.0,95552.0,0.211307]
[1734960777201,0.209303,95555.0,95546.0,8.57e-05]
[1734960777400,0.209307,95553.0,95552.0,0.004]
[1734960777625,0.31329332,95553.0,95552.0,0.004]
[1734960777774,0.10398632,95553.0,95552.0,0.004]
[1734960777974,0.10529464,95553.0,95552.0,0.004]
[1734960778175,0.10529464,95553.0,95546.0,8.57e-05]
[1734960778386,0.10529464,95552.0,95546.0,8.57e-05]
[1734960778926,0.00130832,95552.0,95546.0,8.57e-05]
[1734960779169,0.001,95553.0,95546.0,8.57e-05]
[1734960779326,0.001,95553.0,95552.0,0.20931]
[1734960779955,0.0001718,95567.0,95562.0,0.209286]
[1734960780199,0.0001718,95567.0,95562.0,0.418574]
[1734960780598,0.0001718,95567.0,95562.0,0.209286]
[1734960781410,0.0031718,95567.0,95562.0,0.209286]
[1734960781614,0.0031718,95567.0,95562.0,0.418574]
[1734960782854,0.0031718,95567.0,95563.0,0.00104635]
[1734960783044,0.0031718,95567.0,95564.0,0.418566]